Workbook

Sheet Contents
C2: EBITDA Calculation for ALF Review Consultation
A4: Information
A6: Title | B6: EBITDA Calculation for ALF Review Consultation
A7: Objective | B7: Calculate EBITDA for MNOs for ALF Review
A8: Confidentiality | B8: Non-confidential Ofcom model
A10: Contents
A12: Worksheet | B12: Description
A13: Profitability | B13: Profitability data from MNO financial statements
A14: CPI data | B14: CPI data sourced from the ONS
A15: EBITDA Summary | B15: Real EBITDA calculations for the MNOs
A17: Terms and conditions
A19: The terms and conditions on which OFCOM is making available this model are set out below. The EBITDA Calculation model ('the Model') has been developed to estimate MNOs real EBITDA based on published financial statements. The Model is provided as part of the explanation of OFCOM’s proposals in its consultation “Review of Annual Licence Fees”, dated 13 December 2024. While you may freely use the Model for the purposes for which it is provided, as set out in any accompanying model documentation, OFCOM does not guarantee that the Model will function when used in any modified way. No representation or warranty is given as to the accuracy, completeness or correctness of the provided Model and it is provided 'as is'. It is provided without any representation or endorsement made and without warranty of any kind, whether express or implied, including but not limited to the implied warranties of satisfactory quality, fitness for a particular purpose, non-infringement, compatibility, security and accuracy. OFCOM does not accept any responsibility for any loss, disruption or damage to your data or your computer system which may occur whilst using the Model or material derived from the Model. OFCOM does not warrant that the functions contained in the Model will be uninterrupted or error free. Also, OFCOM does not warrant that defects will be corrected, or that the Model provided is free of viruses. In no event will OFCOM be liable for any loss or damage including, without limitation, indirect or consequential loss or damage, or any loss or damages whatsoever arising from use or loss of use of, data or profits arising out of or in connection with the use or otherwise of the provided Model. By using the Model, you agree to the above.

Sheet Styles
A5: Styles
B8: Input data | C8: 100 | E8: Input data (e.g. RFS data, inflation, etc)
B10: Input assumption or parameter | C10: 100 | E10: Input assumptions or parameters (e.g. for a scenario or control sheet)
B12: Feed internal | C12: 100 | E12: Feed cell from within this workbook
B14: Feed external | C14: 100 | E14: Feed cell from a different workbook
B16: Confidential | C16: 100 | E16: Confidential data, to be removed or randomized before publication
B18: Randomized | C18: 100 | E18: Randomized data
B20: Calculation | C20: 100 | E20: Intermediate calculation (not final output)
B22: Model logic | C22: 100 | E22: Cells required for model logic (e.g. year counters)
B24: Intentionally blank | E24: Cells left intentionally blank
B26: Output | C26: 100 | E26: A key result from this part of the model (in particular one that will be used elsewhere in the model)
B28: Highlight | C28: 100 | E28: A cell that is highlighted for uncertainty
B30: QA highlight | C30: 100 | E30: A cell that is highlighted for quality assurance
B32: Check pass | C32: TRUE | E32: A side calculation intended solely to cross check a result (and which therefore should not be referenced anywhere else in the model)
B33: Check fail | C33: FALSE
B35: Note or source | C35: Text | E35: Note/source
B37: Named range | E37: Cells which are part of a named range
B39: Name | C39: named_range_1 | E39: An Excel Name applying to one or more adjacent cells (use Insert Name Create to actually create the Excel Names)
B41: Un-format | E41: Going back to default Excel formatting

Sheet Inputs>>>

Sheet Profitability
A1: Profitability
A2: Note: 2023 is either year ended 31 March 2024 or 31 December 2023
A4: Vodafone - March year end | B4: VODAFONE LIMITED overview - Find and update company information - GOV.UK (company-information.service.gov.uk)
B5: 2018 | C5: 2019 | D5: 2020 | E5: 2021 | F5: 2022 | G5: 2023
A6: Revenue | B6: 5512.9 | C6: 5657.6 | D6: 5384 | E6: 5543.2 | F6: 5810.6 | G6: 5816
A7: Operating profit | B7: =-676.8 -> -676.8 | C7: =-351.5 -> -351.5 | D7: 186.8 | E7: -317.7 | F7: 16.5 | G7: 8.3
A8: Net profit | B8: =-587.2 -> -587.2 | C8: =-226.2 -> -226.2 | D8: 276 | E8: 136.9 | F8: -3.1 | G8: 11.3
A9: Exceptionals | B9: -114.9 | C9: -6.1 | D9: =678.5-145.7+1.4 -> 534.2 | E9: -137 | F9: -181.5
A10: Amortisation of Spectrum | B10: 402.1 | C10: 410.3 | D10: 433.3 | E10: 334.9 | F10: 94.9 | G10: 81.4
A11: Total depreciation and amortisation | B11: =641.4+402.1+209.5 -> 1253 | C11: =579.9+498.6+410.3+216 -> 1704.8 | D11: =568.5+583.7+433.3+193.8 -> 1779.3 | E11: =334.9+185.7+523.1+631.3 -> 1675 | F11: =509.9+668.7+94.9+194.8 -> 1468.3 | G11: =475.6+705.6+81.4+238.2 -> 1500.8
A12: Adjusted EBITDAaL | B12: 1127.7 | C12: 1304.7 | D12: 1123 | E12: 1123 | F12: 1153.4 | G12: 1180.5
A13: Estimate for EBITDA | B13: =B7+B11 -> 576.2 | C13: =C7+C11 -> 1353.3 | D13: 1966.1 | E13: 1357.3 | F13: 1484.8 | G13: =G7+G11 -> 1509.1
A14: Estimated EBITDA margin (%) | B14: =B13/B6 -> 0.104518493 | C14: =C13/C6 -> 0.2392003676 | D14: 0.3651745914 | E14: 0.2448585654 | F14: 0.2555329914 | G14: 0.2594738652
A16: Telefonica - December year end | B16: O2 HOLDINGS LIMITED overview - Find and update company information - GOV.UK (company-information.service.gov.uk) | E16: TELEFONICA UK LIMITED filing history - Find and update company information - GOV.UK (company-information.service.gov.uk)
B17: 2018 | C17: 2019 | D17: 2020 | E17: 2021 | F17: 2022 | G17: 2023
A18: Revenue | B18: 6007 | C18: 6235 | D18: 5962 | E18: 5485 | F18: 5663.18 | G18: 5945.967
A19: Operating profit | B19: 784 | C19: 824 | D19: 792 | E19: 768 | F19: 1102.381 | G19: 1235.012
A20: Net profit | B20: 629 | C20: 641 | D20: 608 | E20: 656 | F20: 1006.037 | G20: 1592.072
A21: Amortisation of Spectrum | B21: 152 | C21: 158 | D21: 171 | E21: 193 | F21: 88.158 | G21: 88.586
A22: Total Depreciation and amortisation | B22: =523+298 -> 821 | C22: =536+181+264 -> 981 | D22: =525+19+273 -> 817 | E22: =577+183+310 -> 1070 | F22: =799.928+184.371 -> 984.299 | G22: =805.757+184.545 -> 990.302
A23: Estimate for EBITDA | B23: =B19+B22 -> 1605 | C23: 1805 | D23: 1609 | E23: 1838 | F23: 2086.68 | G23: =G19+G22 -> 2225.314
A24: Estimated EBITDA margin (%) | B24: =(B19+B22)/B18 -> 0.2671882803 | C24: 0.2894947875 | D24: 0.2698758806 | E24: 0.3350957156 | F24: 0.368464361 | G24: =(G19+G22)/G18 -> 0.3742560293
A26: Hutchison - December year end | B26: HUTCHISON 3G UK LIMITED overview - Find and update company information - GOV.UK (company-information.service.gov.uk)
B27: 2018 | C27: 2019 | D27: 2020 | E27: 2021 | F27: 2022 | G27: 2023
A28: Revenue | B28: 2379 | C28: 2327 | D28: 2220.353 | E28: 2311.396 | F28: 2380.253 | G28: 2500.497
A29: Operating profit | B29: =78.342 -> 78.342 | C29: =360.319 -> 360.319 | D29: 175.733 | E29: 1125.165 | F29: 94.644 | G29: -73.583
A30: Net profit | B30: =72.385 -> 72.385 | C30: =238.569 -> 238.569 | D30: 195.211 | E30: 1411.644 | F30: 158.457 | G30: -46.298
A31: Exceptional items | B31: -315.993 | C31: 131.855 | D31: 0 | E31: 1078.2 | F31: 0
A32: Amortisation of Spectrum | B32: 0 | C32: 0 | D32: 0 | E32: 0 | F32: 0
A33: Total depreciation and amortisation | B33: =111.386+250.776 -> 362.162 | C33: =101.483+60.691+288.458 -> 450.632 | D33: =107.737+19.35+82.463+282.113 -> 491.663 | E33: =142.512+48.492+87.586+269.842 -> 548.432 | F33: =183.072+57.71+91.23+226.892 -> 558.904 | G33: =238.603+71.016+95.301+265.248 -> 670.168
A34: Reported EBITDA | B34: 756 | C34: 679 | D34: 648 | E34: 1725 | F34: 628 | G34: 526
A35: Estimate for EBITDA | B35: =B29+B33-B31 -> 756.497 | C35: 679.096 | D35: 667.396 | E35: 595.397 | F35: 653.548 | G35: 596.585
A36: Estimated EBITDA margin (%) | B36: =B35/B28 -> 0.3179894914 | C36: 0.2918332617 | D36: 0.3005810337 | E36: 0.2575919488 | F36: 0.2745708124 | G36: 0.238586569
A38: EE - March year end | B38: EE LIMITED filing history - Find and update company information - GOV.UK (company-information.service.gov.uk)
B39: 2018 | C39: 2019 | D39: 2020 | E39: 2021 | F39: 2022 | G39: 2023
A40: Revenue | B40: 7149 | C40: 7264 | D40: 6971 | E40: 6856 | F40: 6913 | G40: 7169
A41: Operating profit | B41: 1455 | C41: 1661 | D41: 1402 | E41: 1589 | F41: 1722 | G41: 1300
A42: Net profit | B42: 1174 | C42: 1323 | D42: 1130 | E42: 1184 | F42: 1454 | G42: 1053
A43: Amortisation of Spectrum | B43: 104 | C43: 129 | D43: 134 | E43: 150 | F43: 157 | G43: 157
A44: Total depreciation and amortisation | B44: =195+440 -> 635 | C44: =209+469+171 -> 849 | D44: 911 | E44: 1016 | F44: 990 | G44: 1039
A45: Reported EBITDA | B45: 2090 | C45: 2510 | D45: 2462 | E45: 2605 | F45: 2712 | G45: 2358
A46: Reported EBITDA margin | B46: =B45/B40 -> 0.2923485802 | C46: 0.3455396476 | D46: 0.3531774494 | E46: 0.3799591599 | F46: 0.3923043541 | G46: 0.3289161668
A47: Estimate for EBITDA | B47: =B41+B44 -> 2090 | C47: 2510 | D47: 2313 | E47: 2605 | F47: 2712 | G47: 2339
A48: Estimated EBITDA margin (%) | B48: =B47/B40 -> 0.2923485802 | C48: 0.3455396476 | D48: 0.3318031846 | E48: 0.3799591599 | F48: 0.3923043541 | G48: 0.3262658669

Sheet CPI data
A1: Title | B1: CPI INDEX 00: ALL ITEMS 2015=100
A2: CDID | B2: D7BT
A3: Source dataset ID | B3: MM23
A4: PreUnit
A5: Unit | B5: Index, base year = 100
A6: Release date | B6: 14-08-2024
A7: Next release | B7: 18 September 2024
A8: Important notes
A9: 1988 | B9: 49.6
A10: 1989 | B10: 52.2
A11: 1990 | B11: 55.9
A12: 1991 | B12: 60.1
A13: 1992 | B13: 62.6
A14: 1993 | B14: 64.2
A15: 1994 | B15: 65.5
A16: 1995 | B16: 67.2
A17: 1996 | B17: 68.8
A18: 1997 | B18: 70.1
A19: 1998 | B19: 71.2
A20: 1999 | B20: 72.1
A21: 2000 | B21: 72.7
A22: 2001 | B22: 73.6
A23: 2002 | B23: 74.5
A24: 2003 | B24: 75.5
A25: 2004 | B25: 76.5
A26: 2005 | B26: 78.1
A27: 2006 | B27: 79.9
A28: 2007 | B28: 81.8
A29: 2008 | B29: 84.7
A30: 2009 | B30: 86.6
A31: 2010 | B31: 89.4
A32: 2011 | B32: 93.4
A33: 2012 | B33: 96.1
A34: 2013 | B34: 98.5
A35: 2014 | B35: 100
A36: 2015 | B36: 100
A37: 2016 | B37: 100.7
A38: 2017 | B38: 103.4
A39: 2018 | B39: 105.9
A40: 2019 | B40: 107.8
A41: 2020 | B41: 108.7
A42: 2021 | B42: 111.6
A43: 2022 | B43: 121.7
A44: 2023 | B44: 130.5
A45: 1988 Q1 | B45: 48.6
A46: 1988 Q2 | B46: 49.5
A47: 1988 Q3 | B47: 49.9
A48: 1988 Q4 | B48: 50.5
A49: 1989 Q1 | B49: 51
A50: 1989 Q2 | B50: 52.1
A51: 1989 Q3 | B51: 52.5
A52: 1989 Q4 | B52: 53.3
A53: 1990 Q1 | B53: 53.9
A54: 1990 Q2 | B54: 55.6
A55: 1990 Q3 | B55: 56.4
A56: 1990 Q4 | B56: 57.5
A57: 1991 Q1 | B57: 57.7
A58: 1991 Q2 | B58: 60.3
A59: 1991 Q3 | B59: 60.8
A60: 1991 Q4 | B60: 61.5
A61: 1992 Q1 | B61: 61.7
A62: 1992 Q2 | B62: 62.8
A63: 1992 Q3 | B63: 62.7
A64: 1992 Q4 | B64: 63.1
A65: 1993 Q1 | B65: 63.2
A66: 1993 Q2 | B66: 64.4
A67: 1993 Q3 | B67: 64.5
A68: 1993 Q4 | B68: 64.7
A69: 1994 Q1 | B69: 64.7
A70: 1994 Q2 | B70: 65.7
A71: 1994 Q3 | B71: 65.6
A72: 1994 Q4 | B72: 65.8
A73: 1995 Q1 | B73: 66.3
A74: 1995 Q2 | B74: 67.3
A75: 1995 Q3 | B75: 67.4
A76: 1995 Q4 | B76: 67.7
A77: 1996 Q1 | B77: 68.1
A78: 1996 Q2 | B78: 68.9
A79: 1996 Q3 | B79: 68.9
A80: 1996 Q4 | B80: 69.4
A81: 1997 Q1 | B81: 69.4
A82: 1997 Q2 | B82: 70
A83: 1997 Q3 | B83: 70.3
A84: 1997 Q4 | B84: 70.6
A85: 1998 Q1 | B85: 70.5
A86: 1998 Q2 | B86: 71.3
A87: 1998 Q3 | B87: 71.2
A88: 1998 Q4 | B88: 71.6
A89: 1999 Q1 | B89: 71.6
A90: 1999 Q2 | B90: 72.3
A91: 1999 Q3 | B91: 72.1
A92: 1999 Q4 | B92: 72.5
A93: 2000 Q1 | B93: 72.1
A94: 2000 Q2 | B94: 72.7
A95: 2000 Q3 | B95: 72.7
A96: 2000 Q4 | B96: 73.2
A97: 2001 Q1 | B97: 72.8
A98: 2001 Q2 | B98: 73.8
A99: 2001 Q3 | B99: 73.8
A100: 2001 Q4 | B100: 73.9
A101: 2002 Q1 | B101: 73.9
A102: 2002 Q2 | B102: 74.5
A103: 2002 Q3 | B103: 74.6
A104: 2002 Q4 | B104: 75
A105: 2003 Q1 | B105: 75
A106: 2003 Q2 | B106: 75.5
A107: 2003 Q3 | B107: 75.6
A108: 2003 Q4 | B108: 76
A109: 2004 Q1 | B109: 75.9
A110: 2004 Q2 | B110: 76.5
A111: 2004 Q3 | B111: 76.6
A112: 2004 Q4 | B112: 77.1
A113: 2005 Q1 | B113: 77.3
A114: 2005 Q2 | B114: 78
A115: 2005 Q3 | B115: 78.4
A116: 2005 Q4 | B116: 78.8
A117: 2006 Q1 | B117: 78.7
A118: 2006 Q2 | B118: 79.8
A119: 2006 Q3 | B119: 80.3
A120: 2006 Q4 | B120: 80.9
A121: 2007 Q1 | B121: 81
A122: 2007 Q2 | B122: 81.8
A123: 2007 Q3 | B123: 81.7
A124: 2007 Q4 | B124: 82.6
A125: 2008 Q1 | B125: 82.9
A126: 2008 Q2 | B126: 84.6
A127: 2008 Q3 | B127: 85.7
A128: 2008 Q4 | B128: 85.8
A129: 2009 Q1 | B129: 85.4
A130: 2009 Q2 | B130: 86.4
A131: 2009 Q3 | B131: 86.9
A132: 2009 Q4 | B132: 87.6
A133: 2010 Q1 | B133: 88.2
A134: 2010 Q2 | B134: 89.3
A135: 2010 Q3 | B135: 89.6
A136: 2010 Q4 | B136: 90.5
A137: 2011 Q1 | B137: 91.8
A138: 2011 Q2 | B138: 93.3
A139: 2011 Q3 | B139: 93.8
A140: 2011 Q4 | B140: 94.7
A141: 2012 Q1 | B141: 95.1
A142: 2012 Q2 | B142: 95.8
A143: 2012 Q3 | B143: 96.1
A144: 2012 Q4 | B144: 97.3
A145: 2013 Q1 | B145: 97.7
A146: 2013 Q2 | B146: 98.4
A147: 2013 Q3 | B147: 98.7
A148: 2013 Q4 | B148: 99.3
A149: 2014 Q1 | B149: 99.4
A150: 2014 Q2 | B150: 100.1
A151: 2014 Q3 | B151: 100.1
A152: 2014 Q4 | B152: 100.2
A153: 2015 Q1 | B153: 99.5
A154: 2015 Q2 | B154: 100.1
A155: 2015 Q3 | B155: 100.1
A156: 2015 Q4 | B156: 100.3
A157: 2016 Q1 | B157: 99.8
A158: 2016 Q2 | B158: 100.4
A159: 2016 Q3 | B159: 100.9
A160: 2016 Q4 | B160: 101.5
A161: 2017 Q1 | B161: 102
A162: 2017 Q2 | B162: 103.2
A163: 2017 Q3 | B163: 103.7
A164: 2017 Q4 | B164: 104.6
A165: 2018 Q1 | B165: 104.7
A166: 2018 Q2 | B166: 105.7
A167: 2018 Q3 | B167: 106.3
A168: 2018 Q4 | B168: 106.9
A169: 2019 Q1 | B169: 106.7
A170: 2019 Q2 | B170: 107.8
A171: 2019 Q3 | B171: 108.3
A172: 2019 Q4 | B172: 108.5
A173: 2020 Q1 | B173: 108.5
A174: 2020 Q2 | B174: 108.5
A175: 2020 Q3 | B175: 108.9
A176: 2020 Q4 | B176: 109
A177: 2021 Q1 | B177: 109.2
A178: 2021 Q2 | B178: 110.7
A179: 2021 Q3 | B179: 111.9
A180: 2021 Q4 | B180: 114.4
A181: 2022 Q1 | B181: 115.9
A182: 2022 Q2 | B182: 120.9
A183: 2022 Q3 | B183: 123.2
A184: 2022 Q4 | B184: 126.7
A185: 2023 Q1 | B185: 127.7
A186: 2023 Q2 | B186: 131.1
A187: 2023 Q3 | B187: 131.4
A188: 2023 Q4 | B188: 132
A189: 2024 Q1 | B189: 132.3
A190: 2024 Q2 | B190: 133.8
A191: 1988 JAN | B191: 48.4
A192: 1988 FEB | B192: 48.6
A193: 1988 MAR | B193: 48.7
A194: 1988 APR | B194: 49.3
A195: 1988 MAY | B195: 49.5
A196: 1988 JUN | B196: 49.7
A197: 1988 JUL | B197: 49.7
A198: 1988 AUG | B198: 49.9
A199: 1988 SEP | B199: 50.1
A200: 1988 OCT | B200: 50.3
... 429 more rows

Sheet Output>>>

Sheet EBITDA Summary
A1: EBITDA calculations
B3: Ofcom estimated EBITDA (£m) | C3: 2018 | D3: 2019 | E3: 2020 | F3: 2021 | G3: 2022 | H3: 2023
B4: Vodafone | C4: =Profitability!B13 -> 576.2 | D4: =Profitability!C13 -> 1353.3 | E4: =Profitability!D13 -> 1966.1 | F4: =Profitability!E13 -> 1357.3 | G4: =Profitability!F13 -> 1484.8 | H4: =Profitability!G13 -> 1509.1
B5: Telefonica | C5: =Profitability!B23 -> 1605 | D5: =Profitability!C23 -> 1805 | E5: =Profitability!D23 -> 1609 | F5: =Profitability!E23 -> 1838 | G5: =Profitability!F23 -> 2086.68 | H5: =Profitability!G23 -> 2225.314
B6: Hutchison 3G | C6: =Profitability!B35 -> 756.497 | D6: =Profitability!C35 -> 679.096 | E6: =Profitability!D35 -> 667.396 | F6: =Profitability!E35 -> 595.397 | G6: =Profitability!F35 -> 653.548 | H6: =Profitability!G35 -> 596.585
B7: EE | C7: =Profitability!B47 -> 2090 | D7: =Profitability!C47 -> 2510 | E7: =Profitability!D47 -> 2313 | F7: =Profitability!E47 -> 2605 | G7: =Profitability!F47 -> 2712 | H7: =Profitability!G47 -> 2339
B8: Total | C8: =SUM(C4:C7) -> 5027.697 | D8: =SUM(D4:D7) -> 6347.396 | E8: 6555.496 | F8: 6395.697 | G8: 6937.028 | H8: 6669.999
B10: Ofcom estimated EBITDA margin %
B11: Vodafone | C11: =Profitability!B14 -> 0.104518493 | D11: =Profitability!C14 -> 0.2392003676 | E11: =Profitability!D14 -> 0.3651745914 | F11: =Profitability!E14 -> 0.2448585654 | G11: =Profitability!F14 -> 0.2555329914 | H11: =Profitability!G14 -> 0.2594738652
B12: Telefonica | C12: =Profitability!B24 -> 0.2671882803 | D12: =Profitability!C24 -> 0.2894947875 | E12: =Profitability!D24 -> 0.2698758806 | F12: =Profitability!E24 -> 0.3350957156 | G12: =Profitability!F24 -> 0.368464361 | H12: =Profitability!G24 -> 0.3742560293
B13: Hutchison 3G | C13: =Profitability!B36 -> 0.3179894914 | D13: =Profitability!C36 -> 0.2918332617 | E13: =Profitability!D36 -> 0.3005810337 | F13: =Profitability!E36 -> 0.2575919488 | G13: =Profitability!F36 -> 0.2745708124 | H13: =Profitability!G36 -> 0.238586569
B14: EE | C14: =Profitability!B48 -> 0.2923485802 | D14: =Profitability!C48 -> 0.3455396476 | E14: =Profitability!D48 -> 0.3318031846 | F14: =Profitability!E48 -> 0.3799591599 | G14: =Profitability!F48 -> 0.3923043541 | H14: =Profitability!G48 -> 0.3262658669
B15: Average EBITDA margin | C15: =C8/SUM(Profitability!B6,Profitability!B18,Profitability!B28,Profitability!B40) -> 0.2388692934 | D15: =D8/SUM(Profitability!C6,Profitability!C18,Profitability!C28,Profitability!C40) -> 0.2954530898 | E15: =E8/SUM(Profitability!D6,Profitability!D18,Profitability!D28,Profitability!D40) -> 0.3191986815 | F15: =F8/SUM(Profitability!E6,Profitability!E18,Profitability!E28,Profitability!E40) -> 0.3166877076 | G15: =G8/SUM(Profitability!F6,Profitability!F18,Profitability!F28,Profitability!F40) -> 0.3340403995 | H15: =H8/SUM(Profitability!G6,Profitability!G18,Profitability!G28,Profitability!G40) -> 0.3112246088
B17: Ofcom estimated real EBITDA (£m) in 2023 prices
B18: Vodafone | C18: ='EBITDA Summary'!C4/VLOOKUP(C$3,'CPI data'!$A$9:$B$44,2,FALSE)*VLOOKUP("2023", 'CPI data'!$A$9:$B$44,2,FALSE) -> 710.0481586 | D18: ='EBITDA Summary'!D4/VLOOKUP(D$3,'CPI data'!$A$9:$B$44,2,FALSE)*VLOOKUP("2023", 'CPI data'!$A$9:$B$44,2,FALSE) -> 1638.271336 | E18: ='EBITDA Summary'!E4/VLOOKUP(E$3,'CPI data'!$A$9:$B$44,2,FALSE)*VLOOKUP("2023", 'CPI data'!$A$9:$B$44,2,FALSE) -> 2360.405244 | F18: ='EBITDA Summary'!F4/VLOOKUP(F$3,'CPI data'!$A$9:$B$44,2,FALSE)*VLOOKUP("2023", 'CPI data'!$A$9:$B$44,2,FALSE) -> 1587.165323 | G18: ='EBITDA Summary'!G4/VLOOKUP(G$3,'CPI data'!$A$9:$B$44,2,FALSE)*VLOOKUP("2023", 'CPI data'!$A$9:$B$44,2,FALSE) -> 1592.164339 | H18: ='EBITDA Summary'!H4/VLOOKUP(H$3,'CPI data'!$A$9:$B$44,2,FALSE)*VLOOKUP("2023", 'CPI data'!$A$9:$B$44,2,FALSE) -> 1509.1
B19: Telefonica | C19: ='EBITDA Summary'!C5/VLOOKUP(C$3,'CPI data'!$A$9:$B$44,2,FALSE)*VLOOKUP("2023", 'CPI data'!$A$9:$B$44,2,FALSE) -> 1977.832861 | D19: ='EBITDA Summary'!D5/VLOOKUP(D$3,'CPI data'!$A$9:$B$44,2,FALSE)*VLOOKUP("2023", 'CPI data'!$A$9:$B$44,2,FALSE) -> 2185.088126 | E19: ='EBITDA Summary'!E5/VLOOKUP(E$3,'CPI data'!$A$9:$B$44,2,FALSE)*VLOOKUP("2023", 'CPI data'!$A$9:$B$44,2,FALSE) -> 1931.688132 | F19: ='EBITDA Summary'!F5/VLOOKUP(F$3,'CPI data'!$A$9:$B$44,2,FALSE)*VLOOKUP("2023", 'CPI data'!$A$9:$B$44,2,FALSE) -> 2149.274194 | G19: ='EBITDA Summary'!G5/VLOOKUP(G$3,'CPI data'!$A$9:$B$44,2,FALSE)*VLOOKUP("2023", 'CPI data'!$A$9:$B$44,2,FALSE) -> 2237.565653 | H19: ='EBITDA Summary'!H5/VLOOKUP(H$3,'CPI data'!$A$9:$B$44,2,FALSE)*VLOOKUP("2023", 'CPI data'!$A$9:$B$44,2,FALSE) -> 2225.314
B20: Hutchison 3G | C20: ='EBITDA Summary'!C6/VLOOKUP(C$3,'CPI data'!$A$9:$B$44,2,FALSE)*VLOOKUP("2023", 'CPI data'!$A$9:$B$44,2,FALSE) -> 932.2271813 | D20: ='EBITDA Summary'!D6/VLOOKUP(D$3,'CPI data'!$A$9:$B$44,2,FALSE)*VLOOKUP("2023", 'CPI data'!$A$9:$B$44,2,FALSE) -> 822.0967347 | E20: ='EBITDA Summary'!E6/VLOOKUP(E$3,'CPI data'!$A$9:$B$44,2,FALSE)*VLOOKUP("2023", 'CPI data'!$A$9:$B$44,2,FALSE) -> 801.2435879 | F20: ='EBITDA Summary'!F6/VLOOKUP(F$3,'CPI data'!$A$9:$B$44,2,FALSE)*VLOOKUP("2023", 'CPI data'!$A$9:$B$44,2,FALSE) -> 696.2303629 | G20: ='EBITDA Summary'!G6/VLOOKUP(G$3,'CPI data'!$A$9:$B$44,2,FALSE)*VLOOKUP("2023", 'CPI data'!$A$9:$B$44,2,FALSE) -> 700.8053739 | H20: ='EBITDA Summary'!H6/VLOOKUP(H$3,'CPI data'!$A$9:$B$44,2,FALSE)*VLOOKUP("2023", 'CPI data'!$A$9:$B$44,2,FALSE) -> 596.585
B21: EE | C21: ='EBITDA Summary'!C7/VLOOKUP(C$3,'CPI data'!$A$9:$B$44,2,FALSE)*VLOOKUP("2023", 'CPI data'!$A$9:$B$44,2,FALSE) -> 2575.495751 | D21: ='EBITDA Summary'!D7/VLOOKUP(D$3,'CPI data'!$A$9:$B$44,2,FALSE)*VLOOKUP("2023", 'CPI data'!$A$9:$B$44,2,FALSE) -> 3038.543599 | E21: ='EBITDA Summary'!E7/VLOOKUP(E$3,'CPI data'!$A$9:$B$44,2,FALSE)*VLOOKUP("2023", 'CPI data'!$A$9:$B$44,2,FALSE) -> 2776.876725 | F21: ='EBITDA Summary'!F7/VLOOKUP(F$3,'CPI data'!$A$9:$B$44,2,FALSE)*VLOOKUP("2023", 'CPI data'!$A$9:$B$44,2,FALSE) -> 3046.169355 | G21: ='EBITDA Summary'!G7/VLOOKUP(G$3,'CPI data'!$A$9:$B$44,2,FALSE)*VLOOKUP("2023", 'CPI data'!$A$9:$B$44,2,FALSE) -> 2908.10189 | H21: ='EBITDA Summary'!H7/VLOOKUP(H$3,'CPI data'!$A$9:$B$44,2,FALSE)*VLOOKUP("2023", 'CPI data'!$A$9:$B$44,2,FALSE) -> 2339
B22: Total | C22: =SUM(C18:C21) -> 6195.603952 | D22: 7683.999796 | E22: 7870.213689 | F22: 7478.839234 | G22: 7438.637256 | H22: 6669.999
B24: % Changes
B25: 2018-2023 | C25: =H22/C22-1 -> 0.07656962127
B26: 2020-2023 | C26: =H22/E22-1 -> -0.1525009023
